fUSD/lending_fUSD_20260205
["ID","MTS","AMOUNT","RATE_DAILY","PERIOD"]
[404553874,1770283842097,-2000.0,0.00017099,2]
[404553875,1770283842106,-2000.0,0.00017099,2]
[404553876,1770283842115,-2000.0,0.00017099,2]
[404553877,1770283842125,-743.50770149,0.00017099,2]
[404553878,1770283842134,-2000.0,0.00017099,2]
[404553879,1770283842143,-2000.0,0.00017099,2]
[404553880,1770283842153,-2000.0,0.00017099,2]
[404553881,1770283842163,-2000.0,0.00017099,2]
[404553882,1770283842173,-2000.0,0.00017099,2]
[404553883,1770283842187,-2008.30623238,0.00017099,2]
[404553884,1770283842197,-500.0,0.00017099,2]
[404553885,1770283842207,-209.40437684,0.00017099,2]
[404553886,1770283842216,-500.0,0.00017099,2]
[404553887,1770283842226,-500.0,0.00017099,2]
[404553888,1770283842235,-500.0,0.00017099,2]
[404553889,1770283842244,-500.0,0.00017099,2]
[404553890,1770283842255,-500.0,0.00017099,2]
[404553891,1770283842265,-500.0,0.00017099,2]
[404553892,1770283842274,-578.20924308,0.00017099,2]
[404553893,1770283842283,-216.07161542,0.00017099,2]
[404553894,1770283842292,-512.54322178,0.00017099,2]
[404553895,1770283842301,-423.0,0.00017102,2]
[404553896,1770283842311,-423.0,0.0001712,2]
[404553897,1770283842320,-423.0,0.00017137,2]
[404553898,1770283842329,-217.15233878,0.00017154,2]
[404553899,1770283842338,-423.0,0.00017187,2]
[404553900,1770283842348,-526.61,0.00017201,2]
[404553901,1770283842357,-225.18697532,0.00017209,2]
[404553902,1770283842367,-423.0,0.00017259,2]
[404553903,1770283842376,-535.0,0.0001726,2]
[404553904,1770283842386,-1000.0,0.0001726,2]
[404553905,1770283842396,-5430.62758935,0.00017261,2]
[404553906,1770283842405,-233.51889341,0.00017264,2]
[404553907,1770283842414,-423.0,0.00017285,2]
[404553908,1770283842424,-242.15909246,0.00017319,2]
[404553909,1770283842434,-251.11897888,0.00017374,2]
[404553910,1770283842444,-8633.52619887,0.000174,2]
[404553911,1770283842453,-260.4103811,0.00017429,2]
[404553912,1770283842462,-526.61,0.00017475,2]
[404553913,1770283842471,-270.0455652,0.00017484,2]
[404553914,1770283842480,-423.0,0.00017511,2]
[404553915,1770283842489,-423.0,0.00017526,2]
[404553916,1770283842498,-152.05768541,0.00017533,2]
[404553917,1770283842508,-1000.0,0.00017534,2]
[404553918,1770283842518,-280.03725112,0.00017539,2]
[404553919,1770283842527,-535.0,0.00017555,2]
[404553920,1770283842536,-290.39862941,0.00017594,2]
[404553921,1770283842546,-1481.23780761,0.00017647,2]
[404553922,1770283842555,-181.08010149,0.00017647,2]
[404553923,1770283842564,-209.98794847,0.00017647,2]
[404553924,1770283842573,-301.1433787,0.00017649,2]
[404553925,1770283842582,-535.0,0.00017749,2]
[404553926,1770283842592,-526.61,0.00017749,2]
[404553927,1770283842601,-423.0,0.00017776,2]
[404553928,1770283842610,-423.0,0.00017794,2]
[404553929,1770283842620,-1000.0,0.00017808,2]
[404553930,1770283842629,-151.0,0.00017832,2]
[404553931,1770283842639,-67484.42639653,0.00017835,2]
[404553932,1770283842649,-91308.8286,0.00017835,2]
[404553933,1770283842658,-500.0,0.00017856,2]
[404553934,1770283842668,-500.0,0.00017856,2]
[404553935,1770283842678,-4800.0,0.000179,2]
[404553936,1770283842688,-25000.0,0.000179,3]
[404553937,1770283842698,-9068.51831638,0.000179,3]
[404553938,1770283842707,-188.17333529,0.000179,2]
[404553939,1770283842718,-2902.4455185,0.000179,2]
[404553940,1770283842727,-5430.62758935,0.000179,2]
[404553941,1770283842737,-700.0,0.0001797,2]
[404553942,1770283842746,-1101.54215647,0.0001797,2]
[404553943,1770283842755,-500.0,0.00017973,2]
[404553944,1770283842765,-500.0,0.00017973,2]
[404553945,1770283842775,-500.0,0.00017973,2]
[404553946,1770283842784,-309.44398841,0.00017973,2]
[404553947,1770283842795,-500.0,0.00017973,2]
[404553948,1770283842804,-500.0,0.00017973,2]
[404553949,1770283842814,-500.0,0.00017973,2]
[404553950,1770283842825,-500.0,0.00017973,2]
[404553951,1770283842845,-500.0,0.00017973,2]
[404553952,1770283842856,-500.0,0.00017973,2]
[404553953,1770283842867,-500.0,0.00017973,2]
[404553954,1770283842876,-500.0,0.00017973,2]
[404553955,1770283842887,-500.0,0.00017973,2]
[404553956,1770283842897,-500.0,0.00017973,2]
[404553957,1770283842907,-561.5530591,0.00017973,2]
[404553958,1770283842917,-500.0,0.00017973,2]
[404553959,1770283842927,-500.0,0.00017973,2]
[404553960,1770283842937,-500.0,0.00017973,2]
[404553961,1770283842946,-500.0,0.00017973,2]
[404553962,1770283842956,-160.11845722,0.00017973,2]
[404553963,1770283842967,-500.0,0.00017973,2]
[404553964,1770283842976,-500.0,0.00017973,2]
[404553965,1770283842986,-500.0,0.00017973,2]
[404553966,1770283842997,-500.0,0.00017973,2]
[404553967,1770283843007,-500.0,0.00017973,2]
[404553968,1770283843017,-520.97702983,0.00017973,2]
[404553969,1770283843027,-500.0,0.00017973,2]
[404553970,1770283843037,-500.0,0.00017973,2]
[404553971,1770283843046,-500.0,0.00017973,2]
[404553972,1770283843056,-500.0,0.00017973,2]
[404553973,1770283843065,-502.08032841,0.00017973,2]
[404553974,1770283843075,-500.0,0.00017973,2]
[404553975,1770283843085,-500.0,0.00017973,2]
[404553976,1770283843095,-500.0,0.00017973,2]
[404553977,1770283843104,-500.0,0.00017973,2]
[404553978,1770283843114,-500.0,0.00017973,2]
[404553979,1770283843123,-500.0,0.00017973,2]
[404553980,1770283843133,-500.0,0.00017973,2]
[404553981,1770283843143,-500.0,0.00017973,2]
[404553982,1770283843152,-262.39107038,0.00017973,2]
[404553983,1770283843162,-500.0,0.00017973,2]
[404553984,1770283843172,-500.0,0.00017973,2]
[404553985,1770283843186,-500.0,0.00017973,2]
[404553986,1770283843195,-500.0,0.00017973,2]
[404553987,1770283843205,-33863.48319073,0.0001799,3]
[404553988,1770283843215,-151.0,0.00017997,2]
[404553989,1770283843226,-300.0,0.00017998,2]
[404553990,1770283843236,-300.0,0.00017998,2]
[404553991,1770283843245,-666.0,0.00017998,2]
[404553992,1770283843256,-300.0,0.00017998,2]
[404553993,1770283843265,-147264.8804235,0.00017999,2]
[404553994,1770283843275,-13257.0995731,0.00017999,2]
[404553995,1770283843284,-300.0,0.00017999,2]
[404553996,1770283843293,-666.0,0.00017999,2]
[404553997,1770283843303,-284.4003159,0.00017999,2]
[404553998,1770283843312,-300.0,0.00017999,2]
[404553999,1770283843322,-666.0,0.00017999,2]
[404554000,1770283843332,-746831.21341539,0.00018,2]
[404554001,1770283843342,-1214.47057065,0.00018,2]
[404554002,1770283843352,-35113.88,0.00018,2]
[404554004,1770283843362,-2170135.04258467,0.00018,2]
[404554005,1770283843378,-288.42531561,0.00018,2]
[404554006,1770283843389,-359.975,0.00018,2]
[404554018,1770283844321,-201.92633565,0.00015348,2]
[404554019,1770283844364,-2346.71437035,0.00015348,2]
[404554020,1770283844374,-1299.68935348,0.00015915,2]
[404554021,1770283844385,-929.37301653,0.00015915,2]
[404554047,1770285007798,-1200.0,0.00011745,2]
[404554048,1770285007822,-489.85589974,0.00011746,2]
[404554049,1770285007846,-1462.86206387,0.00011746,2]
[404554050,1770285007869,-6720.96345069,0.00011746,2]
[404554051,1770285007892,-2697.14084386,0.00011746,2]
[404554052,1770285007915,-500.0,0.00011845,2]
[404554053,1770285007937,-374.94705299,0.00011845,2]
[404554054,1770285007964,-300.16687859,0.00011845,2]
[404554055,1770285007989,-265.37077394,0.00011845,2]
[404554056,1770285008014,-500.0,0.00011845,2]
[404554057,1770285008037,-500.0,0.00011845,2]
[404554058,1770285008060,-500.0,0.00011845,2]
[404554059,1770285008089,-500.0,0.00011845,2]
[404554060,1770285008112,-500.0,0.00011845,2]
[404554061,1770285008135,-574.08388385,0.00011845,2]
[404554062,1770285008160,-500.0,0.00011845,2]
[404554063,1770285008187,-500.0,0.00011845,2]
[404554064,1770285008213,-500.0,0.00011845,2]
[404554065,1770285008238,-500.0,0.00011845,2]
[404554066,1770285008265,-500.0,0.00011845,2]
[404554067,1770285008291,-500.0,0.00011845,2]
[404554068,1770285008316,-602.84881616,0.00011845,2]
[404554069,1770285008342,-500.0,0.00011845,2]
[404554070,1770285008366,-500.0,0.00011845,2]
[404554071,1770285008392,-500.0,0.00011845,2]
[404554072,1770285008417,-500.0,0.00011845,2]
[404554073,1770285008442,-500.0,0.00011845,2]
[404554074,1770285008468,-500.0,0.00011845,2]
[404554075,1770285008493,-500.0,0.00011845,2]
[404554076,1770285008524,-500.0,0.00011845,2]
[404554077,1770285008552,-500.0,0.00011845,2]
[404554078,1770285008579,-500.0,0.00011845,2]
[404554079,1770285008604,-500.0,0.00011845,2]
[404554080,1770285008630,-500.0,0.00011845,2]
[404554081,1770285008656,-1059.95424175,0.00011845,2]
[404554082,1770285008682,-1059.95424175,0.00011845,2]
[404554083,1770285008707,-1059.95424175,0.00011845,2]
[404554084,1770285008732,-1059.95424175,0.00011845,2]
[404554085,1770285008758,-1059.95424175,0.00011845,2]
[404554086,1770285008783,-1059.95424175,0.00011845,2]
[404554087,1770285008808,-1059.95424175,0.00011845,2]
[404554088,1770285008832,-1059.95424175,0.00011845,2]
[404554089,1770285008858,-1059.95424175,0.00011845,2]
[404554090,1770285008882,-1059.95424175,0.00011845,2]
[404554091,1770285008908,-1059.95424175,0.00011845,2]
[404554092,1770285008936,-1059.95424175,0.00011845,2]
[404554093,1770285008964,-1059.95424175,0.00011845,2]
[404554094,1770285008994,-1059.95424175,0.00011845,2]
[404554095,1770285009021,-1059.95424175,0.00011845,2]
[404554096,1770285009048,-1059.95424175,0.00011845,2]
[404554097,1770285009075,-1059.95424175,0.00011845,2]
[404554098,1770285009103,-1059.95424175,0.00011845,2]
[404554099,1770285009129,-1059.95424175,0.00011845,2]
[404554100,1770285009156,-1059.95424175,0.00011845,2]
[404554101,1770285009184,-1059.95424175,0.00011845,2]
[404554102,1770285009211,-1059.95424175,0.00011845,2]
[404554103,1770285009236,-1059.95424175,0.00011845,2]
[404554104,1770285009264,-1059.95424175,0.00011845,2]
[404554105,1770285009290,-1059.95424175,0.00011845,2]
[404554106,1770285009314,-1059.95424175,0.00011845,2]
[404554107,1770285009337,-1059.95424175,0.00011845,2]
[404554108,1770285009362,-1059.95424175,0.00011845,2]
[404554109,1770285009388,-1059.95424175,0.00011845,2]
[404554110,1770285009413,-1059.95424175,0.00011845,2]
[404554111,1770285009440,-1059.95424175,0.00011845,2]
[404554112,1770285009465,-1059.95424175,0.00011845,2]
[404554113,1770285009491,-1059.95424175,0.00011845,2]
[404554114,1770285009521,-1059.95424175,0.00011845,2]
[404554115,1770285009546,-1059.95424175,0.00011845,2]
[404554116,1770285009571,-1059.95424175,0.00011845,2]
[404554117,1770285009596,-1059.95424175,0.00011845,2]
[404554118,1770285009621,-1059.95424175,0.00011845,2]
[404554119,1770285009843,-1059.95424175,0.00011845,2]
[404554120,1770285009871,-1059.95424175,0.00011845,2]
[404554121,1770285009896,-1059.95424175,0.00011845,2]
[404554122,1770285009922,-1059.95424175,0.00011845,2]
[404554123,1770285009947,-1059.95424175,0.00011845,2]
[404554124,1770285009973,-1059.95424175,0.00011845,2]
[404554125,1770285009998,-1059.95424175,0.00011845,2]
[404554126,1770285010022,-1059.95424175,0.00011845,2]
[404554127,1770285010047,-1059.95424175,0.00011845,2]
[404554128,1770285010073,-1059.95424175,0.00011845,2]
[404554129,1770285010098,-1044.81203829,0.00011845,2]
[404554130,1770285010123,-1044.81203829,0.00011845,2]
[404554131,1770285010148,-1044.81203829,0.00011845,2]
[404554132,1770285010174,-1044.81203829,0.00011845,2]
[404554133,1770285010202,-1044.81203829,0.00011845,2]
[404554134,1770285010227,-1044.81203829,0.00011845,2]
[404554135,1770285010252,-1044.81203829,0.00011845,2]
[404554136,1770285010278,-1044.81203829,0.00011845,2]
[404554137,1770285010303,-1044.81203829,0.00011845,2]
[404554138,1770285010328,-1044.81203829,0.00011845,2]
[404554139,1770285010353,-1044.81203829,0.00011845,2]
[404554140,1770285010380,-1044.81203829,0.00011845,2]
[404554141,1770285010405,-1044.81203829,0.00011845,2]
[404554142,1770285010429,-1044.81203829,0.00011845,2]
[404554143,1770285010455,-1044.81203829,0.00011845,2]
[404554144,1770285010479,-1044.81203829,0.00011845,2]
[404554145,1770285010517,-1044.81203829,0.00011845,2]
[404554146,1770285010542,-1044.81203829,0.00011845,2]
[404554147,1770285010568,-1044.81203829,0.00011845,2]
[404554148,1770285010593,-1044.81203829,0.00011845,2]
[404554149,1770285010619,-1044.81203829,0.00011845,2]
[404554150,1770285010643,-1044.81203829,0.00011845,2]
[404554151,1770285010668,-1044.81203829,0.00011845,2]
[404554152,1770285010693,-1044.8120382,0.00011845,2]
[404554153,1770285010722,-83376.43099267,0.00011846,2]
[404554158,1770285032107,-597.0702998,0.00011646,2]
[404554160,1770285032118,-4295.18376716,0.00011846,2]
[404554161,1770285032130,-39044.80647224,0.00011846,2]
[404554162,1770285032214,-108274.19114115,0.00011846,2]
[404554163,1770285032226,-388.32979562,0.00011846,2]
[404554164,1770285032237,-266.77701379,0.00011846,2]
[404554165,1770285032268,-3968.95087844,0.00011846,2]
[404554166,1770285032279,-715.52,0.00011846,2]
[404554167,1770285032323,-1020.54048194,0.00011846,2]
[404554168,1770285032334,-454.19104179,0.00011846,2]
[404554174,1770285038208,-1556.51824111,0.00011846,2]
[404554178,1770285040255,-1147.04140008,0.00011846,2]
[404554179,1770285040267,-951.63031313,0.00011846,2]
[404554180,1770285040308,-1090.0512326,0.00011846,2]
[404554181,1770285040322,-598.62870658,0.00011846,2]
[404554182,1770285040576,-2279.10000001,0.00011846,2]
[404554196,1770285044738,-1226.99980761,0.00011846,2]
[404554197,1770285044793,-352.41050474,0.00011846,2]
[404554198,1770285044847,-2486.71626676,0.00011846,2]
[404554199,1770285044859,-699.25908594,0.00011846,2]
[404554205,1770285046548,-180747.29411654,0.00011846,2]
[404554206,1770285046562,-5270.66908484,0.00011846,2]
[404554220,1770285402808,172.0,5.8e-07,2]
[404554485,1770286045392,2200.0,0.000106,3]
[404554488,1770286047476,4400.0,0.000107,3]
[404554489,1770286049581,6700.0,0.000108,3]
[404554490,1770286051661,8900.0,0.000109,3]
[404554517,1770286231285,-455.57,0.00010569,2]
[404554519,1770286231296,-237.0,0.00010569,2]
[404554521,1770286231306,-200.0,0.00010741,2]
[404554523,1770286231319,-166.66,0.00010966,2]
[404554525,1770286231329,-417.0,0.00011063,2]
[404554527,1770286231339,-530.8914563,0.000111,2]
[404554528,1770286231354,-1491.53744342,0.000111,2]
[404554533,1770286231392,-6611.09729915,0.000111,2]
[404554535,1770286231402,-203.3499,0.00011133,2]
[404554537,1770286231412,-188.17333529,0.00011133,2]
[404554539,1770286231422,-7189.98117109,0.00011133,2]
[404554541,1770286231432,-154.5345725,0.00011198,2]
[404554542,1770286231441,-192.0,0.000112,2]
[404554543,1770286231451,-150.0,0.00011207,2]
[404554544,1770286231461,-300.0,0.00011207,2]
[404554545,1770286231471,-1200.0,0.00011207,2]
[404554546,1770286231480,-173594.20532522,0.00011208,2]
[404554548,1770286231492,-13665.16197163,0.00011208,2]
[404554551,1770286231504,-73117.47935618,0.00011208,2]
[404554553,1770286231516,-428.83006423,0.00011208,2]
[404554569,1770286231785,-12552.18742298,0.00011208,2]
[404554572,1770286231797,-295.0908251,0.00011208,2]
[404554574,1770286231809,-1961.94354208,0.00011208,2]
[404554577,1770286231830,-312.7,0.00011208,2]
[404554579,1770286231845,-19524.97581632,0.00011208,2]
[404554585,1770286237508,-500.0,0.00011207,2]
[404554586,1770286237519,-139.31888652,0.00011207,2]
[404554587,1770286237672,-500.0,0.00011135,2]
[404554588,1770286237683,-57.21430393,0.00011207,2]
[404554589,1770286237693,-162.8002468,0.00011207,2]
[404554590,1770286237706,-88.73952041,0.00011207,2]
[404554591,1770286237717,-500.0,0.00011207,2]
[404554592,1770286237727,-500.0,0.00011207,2]
[404554593,1770286237739,-500.0,0.00011207,2]
[404554594,1770286237751,-171.51554057,0.00011207,2]
[404554595,1770286237763,-500.0,0.00011207,2]
[404554596,1770286237773,-500.0,0.00011207,2]
[404554597,1770286237784,-500.0,0.00011207,2]
[404554598,1770286237795,-500.0,0.00011207,2]
[404554599,1770286237807,-500.0,0.00011207,2]
[404554600,1770286237823,-393.44887585,0.00011207,2]
[404554601,1770286237835,-500.0,0.00011207,2]
[404554602,1770286237849,-500.0,0.00011207,2]
[404554603,1770286237859,-500.0,0.00011207,2]
[404554604,1770286237870,-500.0,0.00011207,2]
[404554605,1770286237880,-500.0,0.00011207,2]
[404554619,1770286238148,-500.0,0.00011207,2]
[404554622,1770286238166,-500.0,0.00011207,2]
[404554624,1770286238178,-500.0,0.00011207,2]
[404554626,1770286238190,-500.0,0.00011207,2]
[404554628,1770286238201,-500.0,0.00011207,2]
[404554630,1770286238212,-500.0,0.00011207,2]
[404554632,1770286238222,-500.0,0.00011207,2]
[404554634,1770286238233,-500.0,0.00011207,2]
[404554636,1770286238243,-500.0,0.00011207,2]
[404554638,1770286238254,-500.0,0.00011207,2]
[404554640,1770286238265,-500.0,0.00011207,2]
[404554642,1770286238275,-256617.80353714,0.00011208,2]
[404554645,1770286238288,-2074.22523032,0.00011208,2]
[404554648,1770286238306,-11737.65924844,0.00011208,2]
[404554650,1770286238320,-1051.74850456,0.00011208,2]
[404554655,1770286238367,-500.0,0.0001119,2]
[404554657,1770286238378,-206.550005,0.00011208,2]
[404554660,1770286238391,-915.68180285,0.00011208,2]
[404554662,1770286238404,-24092.1664737,0.00011208,2]
[404554664,1770286238417,-796.55986639,0.00011208,2]
[404554667,1770286238430,-4932.1520001,0.00011208,2]
[404554669,1770286238443,-2824.62425539,0.00011208,2]
[404554756,1770286239437,-150.21318663,0.00011135,2]
[404554758,1770286239449,-500.0,0.00011135,2]
[404554760,1770286239460,-221.07997801,0.00011208,2]
[404554767,1770286239495,-150.0,0.00011135,2]
[404554769,1770286239506,-207.23,0.00011208,2]
[404554774,1770286239548,-366.00716112,0.0001119,2]
[404554777,1770286239560,-133.99283888,0.0001119,2]
[404554779,1770286239570,-838.1671444,0.00011208,2]
[404554794,1770286239707,-2315.09651318,0.00011208,2]
[404554796,1770286239719,-4741.07815258,0.00011208,2]
[404554798,1770286239731,-2890975.6029642,0.00011208,2]
[404554800,1770286239741,-4567.67,0.00011233,2]
[404554802,1770286239752,-200.0,0.00011234,2]
[404554804,1770286239762,-150.0,0.00011234,2]
[404554807,1770286239772,-201.77401449,0.00011235,2]
[404554808,1770286239783,-500.0,0.00011245,2]
[404554811,1770286239792,-500.0,0.00011245,2]
[404554813,1770286239803,-150.0,0.00011289,2]
[404554815,1770286239819,-500.0,0.00011299,2]
[404554818,1770286239832,-2500.0,0.00011308,2]
[404554820,1770286239845,-2760.06576891,0.00011308,2]
[404554822,1770286239855,-16211.76300058,0.00011308,2]
[404554824,1770286239865,-166.66,0.00011328,2]
[404554826,1770286239875,-200.0,0.00011344,2]
[404554828,1770286239885,-500.0,0.00011354,2]
[404554830,1770286239896,-3325.67071581,0.00011398,2]
[404554832,1770286239908,-150.99,0.00011408,2]
[404554834,1770286239918,-4999.99,0.00011408,2]
[404554836,1770286239928,-999.99,0.00011408,2]
[404554838,1770286239937,-500.0,0.00011409,2]
[404554840,1770286239947,-276.0926,0.00011409,2]
[404554842,1770286239957,-500.0,0.00011464,2]
[404554844,1770286239967,-150.99,0.00011482,2]
[404554846,1770286239976,-9999.99,0.00011482,2]
[404554848,1770286239986,-9999.99,0.00011482,2]
[404554850,1770286239995,-299.99,0.00011482,2]
[404554852,1770286240005,-9814.7281092,0.00011485,2]
[404554854,1770286240015,-25901.22276435,0.00011485,2]
[404554856,1770286240025,-45692.82712633,0.00011485,2]
[404554858,1770286240036,-68353.73667249,0.00011485,2]
[404554860,1770286240046,-154.5345725,0.0001149,2]
[404554863,1770286240056,-379.59384452,0.00011493,2]
[404554865,1770286240066,-3307.45,0.00011498,2]
[404554867,1770286240077,-9999.99,0.00011499,2]
[404554869,1770286240087,-499.99,0.00011499,2]
[404554871,1770286240097,-2769.66593162,0.000115,2]
[404554873,1770286240106,-500.0,0.00011502,2]
[404554875,1770286240116,-203.09655245,0.00011502,2]
[404554878,1770286240125,-500.0,0.00011502,2]
[404554881,1770286240135,-500.0,0.00011502,2]
[404554884,1770286240144,-500.0,0.00011502,2]
[404554887,1770286240154,-500.0,0.00011502,2]
[404554889,1770286240163,-151.0,0.00011502,2]
[404554891,1770286240173,-500.0,0.00011502,2]
[404554893,1770286240186,-151.0,0.00011502,2]
[404554895,1770286240196,-500.0,0.00011502,2]
[404554898,1770286240207,-151.0,0.00011502,2]
[404554900,1770286240217,-151.0,0.00011502,2]
[404554902,1770286240226,-151.0,0.00011502,2]
[404554904,1770286240237,-500.0,0.00011502,2]
[404554906,1770286240247,-151.0,0.00011502,2]
[404554908,1770286240256,-151.0,0.00011502,2]
[404554910,1770286240266,-500.0,0.00011502,2]
[404554912,1770286240276,-151.0,0.00011502,2]
[404554914,1770286240285,-151.0,0.00011502,2]
[404554916,1770286240295,-500.0,0.00011502,2]
[404554918,1770286240304,-151.0,0.00011502,2]
[404554920,1770286240313,-151.0,0.00011502,2]
[404554922,1770286240324,-151.0,0.00011502,2]
[404554924,1770286240334,-500.0,0.00011502,2]
[404554926,1770286240343,-500.0,0.00011502,2]
[404554928,1770286240353,-151.0,0.00011502,2]
[404554930,1770286240363,-500.0,0.00011502,2]
[404554932,1770286240372,-151.0,0.00011502,2]
[404554935,1770286240382,-500.0,0.00011502,2]
[404554937,1770286240395,-151.0,0.00011502,2]
[404554939,1770286240405,-151.0,0.00011502,2]
[404554941,1770286240415,-500.0,0.00011502,2]
[404554943,1770286240425,-151.0,0.00011502,2]
[404554945,1770286240435,-151.0,0.00011502,2]
[404554947,1770286240444,-500.0,0.00011502,2]
[404554949,1770286240454,-151.0,0.00011502,2]
[404554951,1770286240463,-151.0,0.00011502,2]
[404554953,1770286240473,-200.0,0.00011502,2]
[404554955,1770286240482,-500.0,0.00011502,2]
[404554958,1770286240493,-151.0,0.00011502,2]
[404554960,1770286240502,-500.0,0.00011502,2]
[404554962,1770286240511,-151.0,0.00011502,2]
[404554964,1770286240521,-500.0,0.00011502,2]
[404554966,1770286240531,-151.0,0.00011502,2]
[404554968,1770286240541,-500.0,0.00011502,2]
[404554970,1770286240551,-151.0,0.00011502,2]
[404554972,1770286240561,-500.0,0.00011502,2]
[404554974,1770286240573,-151.0,0.00011502,2]
[404554976,1770286240583,-500.0,0.00011502,2]
[404554978,1770286240593,-151.0,0.00011502,2]
[404554981,1770286240603,-500.0,0.00011502,2]
[404554983,1770286240613,-151.0,0.00011502,2]
[404554985,1770286240623,-151.0,0.00011502,2]
[404554987,1770286240633,-151.0,0.00011502,2]
[404554989,1770286240643,-151.0,0.00011502,2]
[404554991,1770286240653,-151.0,0.00011502,2]
[404554993,1770286240663,-200.0,0.00011502,2]
[404554995,1770286240672,-158.099,0.00011508,2]
[404554997,1770286240682,-1823.922,0.00011508,2]
[404554999,1770286240692,-1056.82244701,0.00011508,3]
[404555001,1770286240702,-500.0,0.00011519,2]
[404555003,1770286240711,-500.0,0.00011573,2]
[404555006,1770286240722,-250.0,0.00011626,2]
[404555008,1770286240731,-195.0,0.00011626,2]
[404555010,1770286240741,-230.01386771,0.00011628,2]
[404555012,1770286240752,-1000.0,0.00011645,2]
[404555014,1770286240762,-166.66,0.0001169,2]
[404555016,1770286240771,-175.52213451,0.00011746,2]
[404555018,1770286240781,-165.88513622,0.00011746,2]
[404555020,1770286240791,-871.343294,0.00011846,2]
[404555022,1770286240800,-347072.5600794,0.00011846,2]
[404555024,1770286240810,-151.0,0.00011846,2]
[404555026,1770286240820,-10414.7381119,0.00011846,2]
[404555028,1770286240831,-115914.2774047,0.00011846,2]
[404555030,1770286240844,-304.46889758,0.00011846,2]
[404555032,1770286240854,-3446.4997548,0.00011846,2]
[404555034,1770286240865,-11200.0,0.000119,4]
[404555036,1770286240875,-49774.01578089,0.00011933,2]
[404555039,1770286240886,-16211.76300049,0.0001204,2]
[404555041,1770286240896,-166.66,0.00012052,2]
[404555043,1770286240906,-255.0,0.0001226,2]
[404555045,1770286240915,-173.0,0.00012313,2]
[404555047,1770286240925,-1680.0,0.00012328,2]
[404555049,1770286240935,-152.93,0.00012351,2]
[404555051,1770286240945,-500.0,0.00012384,2]
[404555054,1770286240969,-166.66,0.00012414,2]
[404555057,1770286240981,-301.91,0.00012532,2]
[404555059,1770286240991,-16211.76300049,0.00012773,2]
[404555061,1770286241001,-166.66,0.00012776,2]
[404555063,1770286241010,-2760.06576891,0.00012921,2]
[404555065,1770286241020,-323.11878082,0.00013093,2]
[404555067,1770286241030,-500.0,0.00013205,2]
[404555069,1770286241040,-433.0,0.00013415,2]
[404555071,1770286241051,-3240.0,0.00013425,2]
[404555073,1770286241060,-16211.76300049,0.00013505,2]
[404555075,1770286241071,-2351.0,0.0001356,2]
[404555077,1770286241082,-438.26710356,0.00013698,2]
[404555080,1770286241094,-351.5182,0.00013698,2]
[404555082,1770286241104,-3486.16,0.00013796,2]
[404555084,1770286241114,-2323.8421828,0.00013812,2]
[404555086,1770286241124,-192.19,0.00013893,2]
[404555088,1770286241134,-271.06,0.00013934,2]
[404555090,1770286241145,-250.0,0.00013965,2]
[404555092,1770286241155,-500.0,0.00014026,2]
[404555094,1770286241165,-500.0,0.00014027,2]
[404555096,1770286241175,-16211.76300049,0.00014238,2]
[404555098,1770286241185,-518.5192784,0.00014251,2]
[404555101,1770286241196,-171.5911189,0.00014251,2]
[404555103,1770286241206,-77442.3559136,0.0001447,2]
[404555104,1770286241216,-25863.9712808,0.0001447,2]
[404555105,1770286241226,-92485.0278,0.00014485,2]
[404555106,1770286241237,-200.0,0.00014494,2]
[404555107,1770286241247,-160.0,0.00014509,2]
[404555108,1770286241258,-7189.98117109,0.00014517,2]
[404555109,1770286241268,-2760.06576891,0.00014535,2]
[404555110,1770286241279,-500.0,0.000146,2]